fUST/lending_fUST_20260426
["ID","MTS","AMOUNT","RATE_DAILY","PERIOD"]
[421135454,1777141846684,-2150.738,0.0001514,2]
[421135455,1777141846693,-160.12398727,0.00015195,2]
[421135456,1777141846703,-983.49995392,0.000152,2]
[421135457,1777141846712,-221.1340891,0.000153,2]
[421135458,1777141846723,-762.36586482,0.000153,2]
[421135459,1777141846733,-983.49995392,0.000155,2]
[421135460,1777141846743,-214.67,0.00015532,2]
[421135461,1777141846752,-983.49995392,0.000156,2]
[421135462,1777141846762,-185.0,0.00015617,2]
[421135463,1777141846772,-151.0,0.0001563,2]
[421135464,1777141846782,-2236.31296798,0.00015688,2]
[421135465,1777141846791,-1648.7199414,0.00015875,2]
[421135466,1777141846800,-194.45303293,0.00015988,2]
[421135467,1777141846810,-1895.414143,0.00016,2]
[421135468,1777141846821,-187.70293465,0.00016079,2]
[421135469,1777141846830,-500.0,0.00016086,2]
[421135470,1777141846840,-500.0,0.00016086,2]
[421135471,1777141846849,-500.0,0.00016086,2]
[421135472,1777141846859,-279.08708643,0.00016086,2]
[421135473,1777141846868,-500.0,0.00016086,2]
[421135474,1777141846878,-500.0,0.00016086,2]
[421135475,1777141846887,-500.0,0.00016086,2]
[421135476,1777141846896,-500.0,0.00016086,2]
[421135477,1777141846906,-500.0,0.00016086,2]
[421135478,1777141846915,-500.0,0.00016086,2]
[421135479,1777141846924,-500.0,0.00016086,2]
[421135480,1777141846934,-500.0,0.00016086,2]
[421135481,1777141846943,-500.0,0.00016086,2]
[421135482,1777141846953,-331.51684207,0.00016086,2]
[421135483,1777141846962,-500.0,0.00016086,2]
[421135484,1777141846971,-216.10513454,0.00016086,2]
[421135485,1777141846981,-500.0,0.00016086,2]
[421135486,1777141846991,-500.0,0.00016086,2]
[421135487,1777141847000,-500.0,0.00016086,2]
[421135488,1777141847010,-500.0,0.00016086,2]
[421135489,1777141847019,-500.0,0.00016086,2]
[421135490,1777141847028,-500.0,0.00016086,2]
[421135491,1777141847038,-500.0,0.00016086,2]
[421135492,1777141847047,-500.0,0.00016086,2]
[421135493,1777141847056,-500.0,0.00016086,2]
[421135494,1777141847066,-500.0,0.00016086,2]
[421135495,1777141847075,-500.0,0.00016086,2]
[421135496,1777141847085,-500.0,0.00016086,2]
[421135497,1777141847094,-500.0,0.00016086,2]
[421135498,1777141847103,-500.0,0.00016086,2]
[421135499,1777141847112,-500.0,0.00016086,2]
[421135500,1777141847122,-500.0,0.00016086,2]
[421135501,1777141847131,-500.0,0.00016086,2]
[421135502,1777141847141,-364.6295832,0.00016086,2]
[421135503,1777141847151,-500.0,0.00016086,2]
[421135504,1777141847160,-500.0,0.00016086,2]
[421135505,1777141847170,-500.0,0.00016086,2]
[421135506,1777141847179,-500.0,0.00016086,2]
[421135507,1777141847188,-423.88855069,0.00016086,2]
[421135576,1777143032085,-262.32078478,0.00011527,2]
[421135579,1777143032096,-566.28921522,0.00011527,2]
[421135663,1777143038462,-2219.6471573,0.00011527,2]
[421135664,1777143038472,-582.0,0.00011527,2]
[421135665,1777143038482,-152.28373231,0.00011791,2]
[421135666,1777143038492,-1200.0,0.00011997,2]
[421135667,1777143038501,-300.0,0.00011999,2]
[421135668,1777143038510,-2879.29,0.00012,2]
[421135669,1777143038520,-160.2425941,0.00012603,2]
[421135670,1777143038530,-160.2425941,0.00012855,7]
[421135671,1777143038539,-191.0,0.00012986,3]
[421135672,1777143038549,-210.6159,0.000132,2]
[421135673,1777143038558,-160.2425941,0.00013233,14]
[421135674,1777143038568,-160.0,0.00013569,2]
[421135675,1777143038578,-1000.0,0.00013699,2]
[421135676,1777143038587,-179.69480412,0.00013791,2]
[421135677,1777143038596,-2188.82583358,0.00013809,2]
[421135678,1777143038606,-209.66,0.00014567,2]
[421135679,1777143038615,-171.22,0.00014732,2]
[421135680,1777143038625,-2992.43540126,0.00014798,2]
[421135681,1777143038635,-262.07,0.00014898,2]
[421135682,1777143038645,-220.14,0.00015118,2]
[421135683,1777143038655,-314.49,0.00015229,2]
[421135684,1777143038664,-537.6845,0.00015327,2]
[421135685,1777143038674,-1957.856,0.00015327,2]
[421135686,1777143038683,-2150.738,0.00015327,2]
[421135687,1777143038692,-557.5788265,0.00015382,2]
[421135688,1777143038702,-2026.14318648,0.00015382,2]
[421135689,1777143038711,-578.20924308,0.00015437,2]
[421135690,1777143038721,-599.60298507,0.00015492,2]
[421135691,1777143038731,-500.0,0.00015499,2]
[421135692,1777143038740,-621.78829552,0.00015547,2]
[421135693,1777143038750,-366.9,0.00015559,2]
[421135694,1777143038760,-1482.681261,0.00015566,2]
[421135695,1777143038769,-1482.681261,0.00015566,2]
[421135696,1777143038779,-1482.681261,0.00015566,2]
[421135697,1777143038788,-1482.681261,0.00015566,2]
[421135698,1777143038798,-151.0,0.00015566,2]
[421135699,1777143038808,-151.0,0.00015566,2]
[421135700,1777143038817,-233.333559,0.00015566,2]
[421135701,1777143038827,-9636.93178307,0.00015566,2]
[421135702,1777143038836,-500.0,0.00015573,2]
[421135703,1777143038846,-183.21104306,0.00015573,2]
[421135704,1777143038856,-500.0,0.00015573,2]
[421135705,1777143038865,-304.0969596,0.00015573,2]
[421135706,1777143038874,-500.0,0.00015573,2]
[421135707,1777143038883,-500.0,0.00015573,2]
[421135708,1777143038893,-500.0,0.00015573,2]
[421135709,1777143038903,-500.0,0.00015573,2]
[421135710,1777143038912,-500.0,0.00015573,2]
[421135711,1777143038922,-500.0,0.00015573,2]
[421135712,1777143038931,-329.48915116,0.00015573,2]
[421135713,1777143038941,-500.0,0.00015573,2]
[421135714,1777143038951,-500.0,0.00015573,2]
[421135715,1777143038961,-500.0,0.00015573,2]
[421135716,1777143038970,-500.0,0.00015573,2]
[421135717,1777143038980,-500.0,0.00015573,2]
[421135718,1777143038990,-500.0,0.00015573,2]
[421135719,1777143038999,-500.0,0.00015573,2]
[421135720,1777143039009,-500.0,0.00015573,2]
[421135721,1777143039018,-629.24384314,0.00015573,2]
[421135722,1777143039027,-500.0,0.00015573,2]
[421135723,1777143039037,-500.0,0.00015573,2]
[421135724,1777143039046,-500.0,0.00015573,2]
[421135725,1777143039056,-500.0,0.00015573,2]
[421135726,1777143039066,-500.0,0.00015573,2]
[421135727,1777143039075,-500.0,0.00015573,2]
[421135728,1777143039085,-500.0,0.00015573,2]
[421135729,1777143039095,-500.0,0.00015573,2]
[421135730,1777143039104,-500.0,0.00015573,2]
[421135731,1777143039113,-500.0,0.00015573,2]
[421135732,1777143039123,-500.0,0.00015573,2]
[421135733,1777143039133,-572.42891487,0.00015573,2]
[421135734,1777143039143,-500.0,0.00015573,2]
[421135735,1777143039152,-500.0,0.00015573,2]
[421135736,1777143039162,-500.0,0.00015573,2]
[421135737,1777143039172,-500.0,0.00015573,2]
[421135738,1777143039182,-500.0,0.00015573,2]
[421135739,1777143039191,-500.0,0.00015573,2]
[421135740,1777143039201,-500.0,0.00015573,2]
[421135741,1777143039210,-500.0,0.00015573,2]
[421135742,1777143039220,-500.0,0.00015573,2]
[421135743,1777143039230,-500.0,0.00015573,2]
[421135744,1777143039240,-500.0,0.00015573,2]
[421135745,1777143039250,-500.0,0.00015573,2]
[421135746,1777143039260,-500.0,0.00015573,2]
[421135747,1777143039270,-500.0,0.00015573,2]
[421135748,1777143039280,-500.0,0.00015573,2]
[421135749,1777143039290,-500.0,0.00015573,2]
[421135750,1777143039300,-500.0,0.00015573,2]
[421135751,1777143039310,-500.0,0.00015573,2]
[421135752,1777143039319,-1482.681261,0.00015573,2]
[421135753,1777143039329,-1482.681261,0.00015573,2]
[421135754,1777143039338,-1482.681261,0.00015573,2]
[421135755,1777143039348,-1482.681261,0.00015573,2]
[421135756,1777143039358,-1482.681261,0.00015573,2]
[421135757,1777143039367,-1482.681261,0.00015573,2]
[421135758,1777143039376,-1482.681261,0.00015573,2]
[421135759,1777143039386,-1482.681261,0.00015573,2]
[421135760,1777143039396,-151.0,0.00015573,2]
[421135761,1777143039405,-151.0,0.00015573,2]
[421135762,1777143039415,-251.161233,0.00015573,2]
[421135763,1777143039424,-163.88589185,0.00015574,2]
[421135764,1777143039434,-624.404623,0.00015574,2]
[421135765,1777143039443,-624.404623,0.00015574,2]
[421135766,1777143039452,-624.404623,0.00015574,2]
[421135767,1777143039462,-624.404623,0.00015574,2]
[421135768,1777143039471,-151.0,0.00015574,2]
[421135769,1777143039480,-151.0,0.00015574,2]
[421135770,1777143039489,-186.487685,0.00015574,2]
[421135771,1777143039499,-151.0,0.00015574,2]
[421135772,1777143039508,-151.0,0.00015574,2]
[421135773,1777143039518,-151.0,0.00015574,2]
[421135774,1777143039528,-151.0,0.00015574,2]
[421135775,1777143039537,-151.0,0.00015574,2]
[421135776,1777143039547,-151.0,0.00015574,2]
[421135777,1777143039557,-151.0,0.00015574,2]
[421135778,1777143039566,-151.0,0.00015574,2]
[421135779,1777143039575,-151.0,0.00015574,2]
[421135780,1777143039585,-151.0,0.00015574,2]
[421135781,1777143039594,-157.544318,0.00015574,2]
[421135782,1777143039604,-157.544318,0.00015574,2]
[421135783,1777143039614,-157.544318,0.00015574,2]
[421135784,1777143039623,-157.544318,0.00015574,2]
[421135785,1777143039633,-362.699686,0.00015574,2]
[421135786,1777143039642,-362.699686,0.00015574,2]
[421135787,1777143039651,-362.699686,0.00015574,2]
[421135788,1777143039661,-1482.681261,0.00015574,2]
[421135789,1777143039671,-362.699686,0.00015574,2]
[421135790,1777143039680,-1482.681261,0.00015574,2]
[421135791,1777143039690,-1482.681261,0.00015574,2]
[421135792,1777143039699,-1482.681261,0.00015574,2]
[421135793,1777143039709,-151.0,0.00015574,2]
[421135794,1777143039718,-500.0,0.00015591,2]
[421135795,1777143039728,-192.40120149,0.00015591,2]
[421135796,1777143039737,-500.0,0.00015591,2]
[421135797,1777143039747,-500.0,0.00015591,2]
[421135798,1777143039757,-151.5,0.00015591,2]
[421135799,1777143039766,-500.0,0.00015591,2]
[421135800,1777143039776,-266.7279525,0.00015591,2]
[421135801,1777143039786,-500.0,0.00015591,2]
[421135802,1777143039795,-151.5,0.00015591,2]
[421135803,1777143039805,-248.60296465,0.00015591,2]
[421135804,1777143039815,-267.91941588,0.00015591,2]
[421135805,1777143039824,-151.5,0.00015591,2]
[421135806,1777143039834,-151.5,0.00015591,2]
[421135808,1777143039843,-250.92043172,0.00015591,2]
[421135810,1777143039853,-500.0,0.00015591,2]
[421135812,1777143039862,-500.0,0.00015591,2]
[421135814,1777143039872,-325.76162427,0.00015591,2]
[421135816,1777143039882,-151.0,0.00015591,2]
[421135817,1777143039892,-155.075,0.000156,2]
[421135818,1777143039901,-644.79446246,0.00015602,2]
[421135819,1777143039911,-668.65185757,0.00015657,2]
[421135820,1777143039920,-151.0,0.00015665,2]
[421135821,1777143039930,-151.0,0.00015665,2]
[421135822,1777143039939,-151.0,0.00015665,2]
[421135823,1777143039948,-151.0,0.00015665,2]
[421135824,1777143039957,-171.66093,0.00015665,2]
[421135825,1777143039967,-151.0,0.00015665,2]
[421135826,1777143039976,-151.0,0.00015665,2]
[421135827,1777143039986,-151.0,0.00015665,2]
[421135828,1777143039995,-151.0,0.00015665,2]
[421135829,1777143040005,-151.0,0.00015665,2]
[421135830,1777143040015,-151.0,0.00015665,2]
[421135831,1777143040024,-151.0,0.00015665,2]
[421135832,1777143040034,-151.0,0.00015665,2]
[421135833,1777143040043,-151.0,0.00015665,2]
[421135834,1777143040052,-151.0,0.00015665,2]
[421135835,1777143040062,-151.0,0.00015665,2]
[421135836,1777143040072,-282.01,0.00015665,2]
[421135837,1777143040081,-151.0,0.00015665,2]
[421135838,1777143040091,-157.544318,0.00015665,2]
[421135839,1777143040101,-210.401547,0.00015665,2]
[421135840,1777143040110,-157.544318,0.00015665,2]
[421135841,1777143040119,-157.544318,0.00015665,2]
[421135842,1777143040130,-157.544318,0.00015665,2]
[421135843,1777143040140,-157.544318,0.00015665,2]
[421135844,1777143040149,-157.544318,0.00015665,2]
[421135845,1777143040159,-157.544318,0.00015665,2]
[421135846,1777143040169,-157.544318,0.00015665,2]
[421135847,1777143040178,-157.544318,0.00015665,2]
[421135848,1777143040187,-157.544318,0.00015665,2]
[421135849,1777143040197,-362.699686,0.00015665,2]
[421135850,1777143040206,-157.544318,0.00015665,2]
[421135851,1777143040215,-362.699686,0.00015665,2]
[421135852,1777143040225,-157.544318,0.00015665,2]
[421135853,1777143040234,-362.699686,0.00015665,2]
[421135854,1777143040244,-362.699686,0.00015665,2]
[421135855,1777143040254,-362.699686,0.00015665,2]
[421135856,1777143040310,-362.699686,0.00015665,2]
[421135857,1777143040319,-362.699686,0.00015665,2]
[421135858,1777143040328,-362.699686,0.00015665,2]
[421135859,1777143040338,-362.699686,0.00015665,2]
[421135860,1777143040346,-1482.681261,0.00015665,2]
[421135861,1777143040355,-362.699686,0.00015665,2]
[421135862,1777143040365,-362.699686,0.00015665,2]
[421135863,1777143040374,-362.699686,0.00015665,2]
[421135864,1777143040383,-1482.681261,0.00015665,2]
[421135865,1777143040392,-1482.681261,0.00015665,2]
[421135866,1777143040402,-1482.681258,0.00015665,2]
[421135867,1777143040411,-151.0,0.00015665,2]
[421135868,1777143040420,-1707.05236364,0.00015666,2]
[421135869,1777143040432,-624.404623,0.00015666,2]
[421135870,1777143040441,-624.404623,0.00015666,2]
[421135871,1777143040451,-624.404623,0.00015666,2]
[421135872,1777143040460,-624.404623,0.00015666,2]
[421135873,1777143040470,-151.0,0.00015666,2]
[421135874,1777143040479,-151.0,0.00015666,2]
[421135875,1777143040488,-151.0,0.00015666,2]
[421135876,1777143040498,-151.0,0.00015666,2]
[421135877,1777143040507,-151.0,0.00015666,2]
[421135878,1777143040516,-155.052495,0.00015666,2]
[421135879,1777143040525,-151.0,0.00015666,2]
[421135880,1777143040535,-151.0,0.00015666,2]
[421135881,1777143040544,-151.0,0.00015666,2]
[421135882,1777143040554,-151.0,0.00015666,2]
[421135883,1777143040563,-157.544318,0.00015666,2]
[421135884,1777143040572,-157.544318,0.00015666,2]
[421135885,1777143040581,-157.544318,0.00015666,2]
[421135886,1777143040590,-157.544309,0.00015666,2]
[421135887,1777143040599,-362.699686,0.00015666,2]
[421135888,1777143040608,-362.699686,0.00015666,2]
[421135889,1777143040618,-362.699686,0.00015666,2]
[421135890,1777143040628,-362.699682,0.00015666,2]
[421135891,1777143040637,-26434.99139794,0.00015666,2]
[421135892,1777143040647,-162.380719,0.00015683,2]
[421135893,1777143040656,-445.202766,0.00015683,2]
[421135894,1777143040666,-162.380719,0.00015683,2]
[421135895,1777143040675,-151.0,0.00015683,2]
[421135896,1777143040685,-537.6845,0.00015683,2]
[421135897,1777143040694,-151.0,0.00015683,2]
[421135898,1777143040703,-500.0,0.00015691,2]
[421135899,1777143040712,-562.46679742,0.00015691,2]
[421135900,1777143040721,-221.9216731,0.00015691,2]
[421135901,1777143040731,-500.0,0.00015692,2]
[421135902,1777143040740,-500.0,0.00015692,2]
[421135903,1777143040749,-500.0,0.00015692,2]
[421135904,1777143040759,-500.0,0.00015692,2]
[421135905,1777143040768,-500.0,0.00015692,2]
[421135906,1777143040777,-500.0,0.00015692,2]
[421135907,1777143040786,-360.97986297,0.00015692,2]
[421135908,1777143040795,-509.0,0.00015692,2]
[421135909,1777143040804,-509.0,0.00015692,2]
[421135910,1777143040814,-509.0,0.00015692,2]
[421135911,1777143040823,-154.3472644,0.00015692,2]
[421135912,1777143040832,-151.5,0.00015692,2]
[421135913,1777143040842,-509.0,0.00015692,2]
[421135914,1777143040851,-151.5,0.00015692,2]
[421135915,1777143040860,-509.0,0.00015692,2]
[421135916,1777143040870,-151.5,0.00015692,2]
[421135917,1777143040879,-509.0,0.00015692,2]
[421135918,1777143040888,-165.61705145,0.00015692,2]
[421135919,1777143040898,-509.0,0.00015692,2]
[421135920,1777143040907,-509.0,0.00015692,2]
[421135921,1777143040916,-509.0,0.00015692,2]
[421135922,1777143040926,-509.0,0.00015692,2]
[421135923,1777143040940,-509.0,0.00015692,2]
[421135924,1777143040949,-509.0,0.00015692,2]
[421135925,1777143040958,-509.0,0.00015692,2]
[421135926,1777143040968,-509.0,0.00015692,2]
[421135927,1777143040977,-509.0,0.00015692,2]
[421135928,1777143040987,-509.0,0.00015692,2]
[421135929,1777143040997,-509.0,0.00015692,2]
[421135930,1777143041006,-509.0,0.00015692,2]
[421135931,1777143041015,-509.0,0.00015692,2]
[421135932,1777143041025,-509.0,0.00015692,2]
[421135933,1777143041034,-509.0,0.00015692,2]
[421135934,1777143041043,-509.0,0.00015692,2]
[421135935,1777143041053,-509.0,0.00015692,2]
[421135936,1777143041062,-511.37709176,0.00015692,2]
[421135937,1777143041072,-151.0,0.00015692,2]
[421135938,1777143041082,-151.0,0.00015692,2]
[421135939,1777143041091,-1245.650699,0.00015692,2]
[421135940,1777143041101,-151.0,0.00015692,2]
[421135941,1777143041110,-1245.650699,0.00015692,2]
[421135942,1777143041120,-1245.650699,0.00015692,2]
[421135944,1777143041130,-1245.650699,0.00015692,2]
[421135945,1777143041139,-151.0,0.00015692,2]
[421135946,1777143041148,-151.0,0.00015692,2]
[421135947,1777143041157,-151.0,0.00015692,2]
[421135948,1777143041166,-151.0,0.00015692,2]
[421135949,1777143041175,-151.0,0.00015692,2]
[421135950,1777143041185,-152.29105,0.00015692,2]
[421135951,1777143041195,-151.0,0.00015692,2]
[421135952,1777143041204,-1040.489551,0.00015692,2]
[421135953,1777143041213,-1040.489551,0.00015692,2]
[421135954,1777143041222,-1040.489551,0.00015692,2]
[421135955,1777143041231,-1040.489551,0.00015692,2]
[421135956,1777143041241,-1040.489551,0.00015692,2]
[421135957,1777143041249,-1040.489551,0.00015692,2]
[421135958,1777143041258,-1040.489551,0.00015692,2]
[421135959,1777143041268,-1040.489551,0.00015692,2]
[421135960,1777143041277,-1040.489551,0.00015692,2]
[421135961,1777143041286,-1040.489551,0.00015692,2]
[421135962,1777143041295,-1040.489551,0.00015692,2]
[421135963,1777143041304,-1040.489551,0.00015692,2]
[421135964,1777143041313,-1040.489551,0.00015692,2]
[421135965,1777143041322,-1040.489551,0.00015692,2]
[421135966,1777143041331,-1040.489551,0.00015692,2]
[421135967,1777143041340,-1040.489551,0.00015692,2]
[421135968,1777143041350,-151.0,0.00015692,2]
[421135969,1777143041359,-151.0,0.00015692,2]
[421135970,1777143041368,-151.0,0.00015692,2]
[421135971,1777143041377,-151.0,0.00015692,2]
[421135972,1777143041386,-151.0,0.00015692,2]
[421135973,1777143041395,-151.0,0.00015692,2]
[421135974,1777143041404,-185.05307,0.00015692,2]
[421135975,1777143041413,-185.05307,0.00015692,2]
[421135976,1777143041422,-185.05307,0.00015692,2]
[421135977,1777143041431,-185.05307,0.00015692,2]
[421135978,1777143041440,-185.05307,0.00015692,2]
[421135979,1777143041449,-185.05307,0.00015692,2]
[421135980,1777143041458,-185.05307,0.00015692,2]
[421135981,1777143041467,-185.05307,0.00015692,2]
[421135982,1777143041477,-185.05307,0.00015692,2]
[421135983,1777143041486,-185.05307,0.00015692,2]
[421135984,1777143041495,-185.05307,0.00015692,2]
[421135985,1777143041504,-185.05307,0.00015692,2]
[421135986,1777143041513,-185.05307,0.00015692,2]
[421135987,1777143041522,-185.05307,0.00015692,2]
[421135988,1777143041531,-185.05307,0.00015692,2]
[421135989,1777143041540,-185.05307,0.00015692,2]
[421135990,1777143041549,-151.0,0.00015692,2]
[421135991,1777143041558,-151.0,0.00015692,2]
[421135992,1777143041567,-226.408555,0.00015692,2]
[421135993,1777143041576,-226.408555,0.00015692,2]
[421135994,1777143041585,-226.408555,0.00015692,2]
[421135995,1777143041594,-226.408555,0.00015692,2]
[421135996,1777143041603,-226.408555,0.00015692,2]
[421135997,1777143041612,-226.408555,0.00015692,2]
[421135998,1777143041622,-226.408555,0.00015692,2]
[421135999,1777143041631,-226.408555,0.00015692,2]
[421136000,1777143041639,-226.408555,0.00015692,2]
[421136001,1777143041647,-226.408555,0.00015692,2]
[421136002,1777143041655,-226.408555,0.00015692,2]
[421136003,1777143041663,-226.408555,0.00015692,2]
[421136004,1777143041671,-226.408555,0.00015692,2]
[421136005,1777143041680,-226.408555,0.00015692,2]
[421136006,1777143041690,-226.408555,0.00015692,2]
[421136007,1777143041699,-226.408555,0.00015692,2]
[421136008,1777143041708,-624.404623,0.00015692,2]
[421136009,1777143041717,-624.404623,0.00015692,2]
[421136010,1777143041727,-624.404623,0.00015692,2]
[421136011,1777143041736,-624.404623,0.00015692,2]
[421136012,1777143041745,-624.404623,0.00015692,2]
[421136013,1777143041754,-624.404623,0.00015692,2]
[421136014,1777143041764,-624.404623,0.00015692,2]
[421136015,1777143041773,-624.404623,0.00015692,2]
[421136016,1777143041783,-624.404623,0.00015692,2]
[421136017,1777143041792,-624.404623,0.00015692,2]
[421136018,1777143041801,-624.404623,0.00015692,2]
[421136019,1777143041810,-624.404615,0.00015692,2]
[421136020,1777143041820,-151.0,0.00015692,2]
[421136021,1777143041830,-151.0,0.00015692,2]
[421136022,1777143041839,-151.0,0.00015692,2]
[421136023,1777143041848,-151.0,0.00015692,2]
[421136024,1777143041857,-151.0,0.00015692,2]
[421136025,1777143041866,-151.0,0.00015692,2]
[421136026,1777143041875,-151.0,0.00015692,2]
[421136027,1777143041885,-151.0,0.00015692,2]
[421136028,1777143041894,-151.0,0.00015692,2]
[421136029,1777143041903,-151.0,0.00015692,2]
[421136030,1777143041912,-151.0,0.00015692,2]
[421136031,1777143041921,-286.35805,0.00015692,2]
[421136032,1777143041930,-455.8002901,0.00015711,2]
[421136033,1777143041940,-426.61146891,0.00015712,2]
[421136034,1777143041949,-455.8715388,0.00015743,2]
[421136035,1777143041958,-151.0,0.00015743,2]
[421136036,1777143041968,-151.0,0.00015743,2]
[421136037,1777143041977,-153.0720201,0.00015743,2]
[421136038,1777143041987,-151.0,0.00015743,2]
[421136039,1777143041996,-185.0,0.00015746,2]
[421136040,1777143042005,-500.0,0.00015765,2]
[421136041,1777143042015,-151.0,0.00015766,2]
[421136042,1777143042024,-151.0,0.00015766,2]
[421136043,1777143042033,-151.0,0.00015766,2]
[421136044,1777143042042,-151.0,0.00015766,2]
[421136045,1777143042051,-151.0,0.00015766,2]
[421136046,1777143042061,-151.0,0.00015766,2]
[421136047,1777143042070,-1245.650699,0.00015766,2]
[421136048,1777143042079,-1245.650699,0.00015766,2]
[421136049,1777143042090,-1245.650699,0.00015766,2]
[421136050,1777143042100,-151.0,0.00015766,2]
[421136051,1777143042110,-151.0,0.00015766,2]
[421136052,1777143042120,-151.0,0.00015766,2]
[421136053,1777143042130,-1245.650699,0.00015766,2]
[421136054,1777143042144,-1245.650699,0.00015766,2]
[421136055,1777143042154,-1245.650699,0.00015766,2]
[421136056,1777143042164,-1245.650699,0.00015766,2]
[421136057,1777143042174,-1245.650699,0.00015766,2]
[421136058,1777143042183,-1245.650699,0.00015766,2]
[421136059,1777143042192,-1245.650699,0.00015766,2]
[421136060,1777143042202,-1245.650699,0.00015766,2]
[421136061,1777143042211,-1245.650699,0.00015766,2]
[421136062,1777143042220,-151.0,0.00015766,2]
[421136063,1777143042229,-151.0,0.00015766,2]
[421136064,1777143042238,-151.0,0.00015766,2]
[421136065,1777143042247,-151.0,0.00015766,2]
[421136066,1777143042256,-151.0,0.00015766,2]
[421136067,1777143042266,-151.0,0.00015766,2]
[421136068,1777143042275,-206.943379,0.00015766,2]
[421136069,1777143042287,-151.0,0.00015766,2]
[421136070,1777143042296,-151.0,0.00015766,2]
[421136071,1777143042305,-151.0,0.00015766,2]
[421136072,1777143042314,-151.0,0.00015766,2]
[421136073,1777143042323,-285.11815,0.00015766,2]
[421136074,1777143042333,-1040.489551,0.00015766,2]
[421136075,1777143042342,-1040.489551,0.00015766,2]
[421136076,1777143042351,-1040.489551,0.00015766,2]
[421136077,1777143042360,-1040.489557,0.00015766,2]
[421136078,1777143042370,-151.0,0.00015766,2]
[421136079,1777143042379,-151.0,0.00015766,2]
[421136080,1777143042389,-185.05307,0.00015766,2]
[421136081,1777143042398,-185.05307,0.00015766,2]
[421136082,1777143042408,-185.05307,0.00015766,2]
[421136083,1777143042417,-185.053064,0.00015766,2]
[421136084,1777143042427,-226.408555,0.00015766,2]
[421136085,1777143042436,-226.408555,0.00015766,2]
[421136086,1777143042445,-226.408555,0.00015766,2]
[421136087,1777143042454,-226.408553,0.00015766,2]
[421136088,1777143042463,-500.0,0.00015766,2]
[421136089,1777143042472,-500.0,0.00015766,2]
[421136090,1777143042481,-500.0,0.00015766,2]
[421136091,1777143042490,-500.0,0.00015766,2]
[421136092,1777143042499,-209.203986,0.00015767,2]
[421136093,1777143042508,-151.0,0.00015767,2]
[421136094,1777143042518,-1245.650699,0.00015767,2]
[421136095,1777143042527,-190.925079,0.00015767,2]
[421136096,1777143042536,-1245.650699,0.00015767,2]
[421136097,1777143042550,-1245.650699,0.00015767,2]
[421136098,1777143042559,-1245.650693,0.00015767,2]
[421136099,1777143042567,-151.0,0.00015767,2]
[421136101,1777143042576,-151.0,0.00015767,2]
[421136103,1777143042586,-151.0,0.00015767,2]
[421136104,1777143042595,-325.4528442,0.00015768,2]
[421136106,1777143042604,-207.10587594,0.00015791,2]
[421136107,1777143042612,-1707.05236362,0.00015822,2]
[421136108,1777143042621,-500.0,0.00015865,2]
[421136109,1777143042631,-151.0,0.00015865,2]
[421136110,1777143042639,-151.0,0.00015865,2]
[421136111,1777143042649,-703.856739,0.00015865,2]
[421136112,1777143042658,-703.856739,0.00015865,2]
[421136113,1777143042667,-703.856739,0.00015865,2]
[421136114,1777143042677,-703.856739,0.00015865,2]
[421136115,1777143042686,-703.856739,0.00015865,2]